[Event "XXII Rochefort Chess Masters"]
[Site "ROCHEFORT, France"]
[Date "2024.02.20"]
[Round "5.5"]
[White "Larkin, Vladyslav"]
[Black "Mekhane, Adam"]
[Result "1-0"]
[TimeControl "1h30/40 - 30' + [30'']"]
[WhiteElo "2460"]
[BlackElo "2300"]

1. c4 {[%emt 00:15:48]} e5 {[%emt 00:02:46]} 2. Nc3 {[%clk 01:13:26]} {[%emt
00:00:06]} Bb4 {[%emt 00:03:17]} 3. Qb3 {[%emt 00:05:08]} a5 {[%clk 01:24:38]}
{[%emt 00:00:53]} 4. Nf3 {[%emt 00:02:01]} d6 {[%emt 00:25:00]} 5. Na4 {[%emt
00:15:52]} Nd7 {[%emt 00:03:18]} 6. a3 {[%emt 00:00:55]} Bc5 {[%clk 01:08:08]}
{[%emt 00:00:27]} 7. Qc2 {[%emt 00:04:01]} Ba7 {[%emt 00:05:27]} 8. b4 {[%emt
00:16:08]} axb4 {[%clk 00:46:53]} {[%emt 00:02:23]} 9. axb4 {[%emt 00:11:47]}
b5 {[%emt 00:01:15]} 10. cxb5 {[%clk 00:37:35]} {[%emt 00:00:17]} Bb7 {[%emt
00:02:50]} 11. Bb2 {[%emt 00:08:14]} Nb6 {[%emt 00:02:47]} 12. e3 {[%clk
00:33:50]} {[%emt 00:00:26]} Nxa4 {[%clk 00:26:58]} {[%emt 00:01:05]} 13. Rxa4
{[%clk 00:34:15]} {[%emt 00:00:05]} Bb6 {[%emt 00:00:32]} 14. Rxa8 {[%emt
00:01:13]} Qxa8 {[%clk 00:26:12]} {[%emt 00:01:00]} 15. Be2 {[%clk 00:33:52]}
{[%emt 00:00:23]} Nf6 {[%clk 00:25:11]} {[%emt 00:01:31]} 16. O-O {[%emt
00:00:07]} O-O {[%emt 00:01:08]} 17. Ra1 {[%emt 00:02:25]} Qc8 {[%emt
00:06:48]} 18. d4 {[%emt 00:04:38]} e4 {[%clk 00:18:33]} {[%emt 00:04:01]} 19.
Nd2 {[%emt 00:01:29]} Bd5 {[%emt 00:02:50]} 20. Nc4 {[%emt 00:03:09]} Bxc4
{[%clk 00:14:35]} {[%emt 00:00:20]} 21. Qxc4 {[%clk 00:22:59]} {[%emt
00:00:04]} d5 {[%clk 00:14:32]} {[%emt 00:00:34]} 22. Qc6 {[%emt 00:01:03]} h5
{[%clk 00:13:25]} {[%emt 00:00:37]} 23. Bc3 {[%clk 00:23:13]} {[%emt 00:00:42]}
Qf5 {[%clk 00:12:43]} {[%emt 00:01:12]} 24. Be1 {[%emt 00:02:55]} g5 {[%clk
00:07:59]} {[%emt 00:02:53]} 25. h3 Kg7 {[%emt 00:02:42]} 26. Ra8 {[%clk
00:21:50]} {[%emt 00:00:09]} Rxa8 {[%clk 00:07:40]} {[%emt 00:00:48]} 27. Qxa8
{[%clk 00:22:15]} {[%emt 00:00:06]} g4 {[%clk 00:05:52]} {[%emt 00:02:18]} 28.
hxg4 {[%clk 00:22:25]} {[%emt 00:00:20]} hxg4 {[%emt 00:01:55]} 29. Qd8 {[%emt
00:01:22]} Qg5 {[%clk 00:04:19]} {[%emt 00:00:57]} 30. Qe7 {[%emt 00:02:05]}
Kg6 {[%emt 00:07:04]} 31. Bc3 {[%emt 00:04:24]} Nh7 {[%emt 00:07:11]} 32. Qe8
{[%clk 00:03:57]} {[%emt 00:00:41]} Nf6 {[%clk 00:03:00]} {[%emt 00:00:10]} 33.
Qe5 {[%emt 00:01:24]} Nd7 {[%clk 00:02:05]} {[%emt 00:00:10]} 34. Qg3 {[%emt
00:00:20]} Nf6 {[%emt 00:01:37]} 35. Bd1 {[%clk 00:04:55]} {[%emt 00:00:01]}
Kh6 {[%emt 00:01:15]} 36. Kf1 {[%clk 00:04:49]} {[%emt 00:00:02]} Kg6 {[%clk
00:00:40]} {[%emt 00:00:41]} 37. Ke1 {[%emt 00:00:32]} Qh5 {[%emt 00:02:57]} 38.
Kd2 {[%clk 00:01:21]} {[%emt 00:01:30]} Qg5 {[%emt 00:00:13]} 39. Kc2 {[%clk
00:01:37]} {[%emt 00:00:02]} Qf5 {[%clk 00:00:47]} {[%emt 00:00:51]} 40. Kd2
{[%emt 00:00:53]} Qg5 {[%clk 00:00:39]} {[%emt 00:00:12]} 41. Be2 {[%emt
00:13:17]} Kh6 {[%clk 00:16:53]} {[%emt 00:01:07]} 42. Kc2 {[%emt 00:04:04]}
Kg6 {[%emt 00:01:19]} 43. Bd2 {[%clk 00:29:53]} {[%emt 00:00:29]} Kh6 {[%clk
00:13:49]} {[%emt 00:01:21]} 44. Kc1 {[%clk 00:29:41]} {[%emt 00:00:42]} Kg6
{[%clk 00:13:55]} {[%emt 00:00:24]} 45. Bd1 {[%emt 00:00:15]} Kh6 {[%emt
00:07:16]} 46. Be2 {[%emt 00:01:03]} Kg6 {[%clk 00:13:33]} {[%emt 00:00:19]} 47.
Kd1 {[%emt 00:00:59]} Kh6 {[%emt 00:00:54]} 48. Ke1 {[%emt 00:03:06]} Kg6
{[%clk 00:11:55]} {[%emt 00:00:16]} 49. Bc3 {[%emt 00:01:38]} Kh6 {[%emt
00:00:38]} 50. Kf1 {[%clk 00:18:30]} {[%emt 00:02:50]} Kg6 {[%clk 00:11:21]}
{[%emt 00:00:29]} 51. Kg1 {[%emt 00:00:17]} Kh6 {[%emt 00:01:52]} 52. Bd1
{[%clk 00:16:58]} {[%emt 00:00:43]} Kg6 {[%clk 00:11:58]} {[%emt 00:00:03]} 53.
Qe5 {[%emt 00:05:53]} Nd7 {[%emt 00:03:09]} 54. Qh8 {[%emt 00:00:57]} Nf6
{[%clk 00:06:54]} {[%emt 00:00:16]} 55. Kh2 {[%emt 00:03:25]} Nh5 {[%emt
00:01:34]} 56. Qg8+ {[%clk 00:12:50]} {[%emt 00:00:07]} Ng7 {[%emt 00:01:07]}
57. g3 {[%emt 00:01:54]} Qf5 {[%clk 00:03:02]} {[%emt 00:01:39]} 58. Kg1 {[%clk
00:11:19]} {[%emt 00:00:04]} Qd7 {[%clk 00:03:04]} {[%emt 00:00:28]} 59. Qa8
{[%emt 00:02:40]} f5 {[%emt 00:03:41]} 60. Bb3 {[%clk 00:08:29]} {[%emt
00:00:30]} Qxb5 {[%clk 00:00:46]} {[%emt 00:00:17]} 61. Bxd5 {[%clk 00:08:51]}
{[%emt 00:00:08]} Qd3 {[%clk 00:00:43]} {[%emt 00:00:33]} 62. Qc6+ {[%clk
00:09:17]} {[%emt 00:00:04]} Kh7 {[%clk 00:00:33]} {[%emt 00:00:40]} 63. Bf7
{[%clk 00:09:36]} {[%emt 00:00:10]} Qd1+ {[%clk 00:00:32]} {[%emt 00:00:32]} 64.
Kh2 {[%emt 00:00:35]} 1-0

[Event "XXII Rochefort Chess Masters"]
[Site "ROCHEFORT, France"]
[Date "2024.02.20"]
[Round "5.3"]
[White "Droin, Augustin"]
[Black "Mullon, Jean-Baptiste"]
[Result "1-0"]
[TimeControl "1h30/40 - 30' + [30'']"]
[WhiteElo "2471"]
[BlackElo "2304"]

1. e4 {[%emt 00:00:17]} c5 {[%clk 01:30:48]} 2. Nf3 {[%clk 01:31:01]} {[%emt
00:00:06]} Nc6 {[%emt 00:00:34]} 3. Bb5 {[%clk 01:30:57]} {[%emt 00:00:05]} g6
{[%emt 00:00:17]} 4. O-O {[%clk 01:31:01]} {[%emt 00:00:18]} Bg7 {[%emt
00:00:48]} 5. c3 {[%emt 00:04:28]} d6 {[%emt 00:01:07]} 6. d4 {[%emt 00:01:22]}
Bd7 {[%emt 00:03:51]} 7. dxc5 {[%emt 00:00:34]} dxc5 {[%emt 00:04:04]} 8. Re1
{[%emt 00:09:01]} a6 {[%clk 01:18:50]} {[%emt 00:00:21]} 9. Bf1 {[%clk
01:16:33]} {[%emt 00:11:57]} Nf6 10. e5 {[%emt 00:07:21]} Ng4 {[%emt 00:00:14]}
11. Bf4 {[%emt 00:18:40]} h5 {[%emt 00:03:54]} 12. h3 {[%emt 00:05:47]} Nh6
{[%emt 00:01:01]} 13. Nbd2 {[%emt 00:08:53]} Bf5 {[%emt 00:02:13]} 14. Qe2
{[%emt 00:00:33]} Qc8 {[%emt 00:00:51]} 15. Nc4 {[%emt 00:02:13]} Ra7 {[%emt
00:00:38]} 16. Qe3 {[%clk 01:09:54]} {[%emt 00:01:35]} Nd8 {[%emt 00:02:33]} 17.
a4 {[%emt 00:14:29]} Ne6 {[%emt 00:01:01]} 18. Nb6 {[%emt 00:00:25]} Qc6 {[%clk
00:22:10]} {[%emt 00:00:35]} 19. a5 {[%emt 00:00:40]} Nxf4 {[%clk 00:22:09]}
{[%emt 00:00:06]} 20. Qxf4 {[%clk 01:05:06]} {[%emt 00:00:05]} Be6 {[%emt
00:02:02]} 21. Ng5 {[%emt 00:02:55]} O-O {[%emt 00:04:02]} 22. Nxe6 {[%emt
00:01:23]} Qxe6 {[%emt 00:02:55]} 23. Bc4 {[%emt 00:02:29]} Qf5 {[%clk
00:16:29]} {[%emt 00:00:13]} 24. Qe3 {[%emt 00:01:16]} Kh7 {[%emt 00:02:02]} 25.
Qxc5 {[%clk 00:57:45]} {[%emt 00:00:33]} f6 {[%emt 00:03:07]} 26. Nd7 {[%clk
00:53:32]} {[%emt 00:01:38]} Qxd7 {[%clk 00:15:26]} {[%emt 00:00:12]} 27. Qxa7
{[%emt 00:00:32]} Qc6 {[%clk 00:14:10]} {[%emt 00:01:19]} 28. Bd3 {[%emt
00:01:06]} fxe5 {[%emt 00:00:38]} 29. Qb6 {[%emt 00:00:53]} Qxb6 {[%clk
00:13:32]} {[%emt 00:00:56]} 30. axb6 {[%clk 00:53:28]} {[%emt 00:00:05]} Rf6
{[%clk 00:14:00]} {[%emt 00:00:02]} 31. Rxe5 {[%clk 00:53:31]} {[%emt
00:00:27]} Rd6 {[%emt 00:01:07]} 32. Re3 {[%clk 00:52:43]} {[%emt 00:00:18]}
Bf6 {[%emt 00:01:58]} 33. Ra5 {[%emt 00:00:58]} Rxb6 {[%emt 00:00:33]} 34. Rxh5
{[%emt 00:09:44]} Kg7 {[%clk 00:05:23]} {[%emt 00:00:01]} 35. Rg3 {[%emt
00:00:18]} g5 {[%emt 00:00:44]} 36. f4 {[%emt 00:00:24]} Nf7 {[%clk 00:05:50]}
{[%emt 00:00:03]} 37. fxg5 {[%clk 00:51:19]} {[%emt 00:00:13]} Be5 {[%clk
00:06:19]} {[%emt 00:00:01]} 38. Rf3 {[%emt 00:00:52]} 1-0

[Event "XXII Rochefort Chess Masters"]
[Site "ROCHEFORT, France"]
[Date "2024.02.20"]
[Round "6.1"]
[White "Romanov, Evgeny"]
[Black "Droin, Augustin"]
[Result "1/2-1/2"]
[TimeControl "1h30/40 - 30' + [30'']"]
[WhiteElo "2593"]
[BlackElo "2471"]

1. c4 {[%emt 00:02:09]} Nf6 {[%emt 00:00:46]} 2. Nf3 {[%emt 00:00:32]} e6
{[%clk 01:28:48]} {[%emt 00:00:14]} 3. g3 {[%clk 01:14:46]} {[%emt 00:00:24]}
d5 {[%clk 01:28:53]} {[%emt 00:00:26]} 4. Bg2 {[%emt 00:01:47]} d4 {[%emt
00:00:12]} 5. d3 {[%emt 00:03:16]} Be7 {[%clk 01:24:46]} {[%emt 00:00:16]} 6.
O-O {[%clk 01:14:59]} {[%emt 00:00:53]} O-O {[%emt 00:07:21]} 7. e4 {[%emt
00:04:42]} Nc6 {[%emt 00:02:06]} 8. e5 {[%clk 01:07:23]} {[%emt 00:00:46]} Nd7
{[%clk 01:19:52]} {[%emt 00:00:05]} 9. Qe2 {[%emt 00:00:48]} a5 {[%clk
01:19:39]} {[%emt 00:00:04]} 10. h4 {[%emt 00:06:06]} Rb8 {[%emt 00:02:11]} 11.
Bf4 {[%emt 00:02:03]} Nc5 {[%emt 00:07:33]} 12. Na3 {[%emt 00:01:59]} Nb4
{[%emt 00:03:13]} 13. Nb5 {[%emt 00:07:30]} Nbxd3 {[%emt 00:11:09]} 14. Bd2
{[%emt 00:05:43]} Bd7 {[%emt 00:02:09]} 15. Nbxd4 {[%emt 00:01:49]} Nxb2 {[%emt
00:02:32]} 16. Bxa5 {[%emt 00:01:27]} Ra8 {[%emt 00:11:52]} 17. Nb3 {[%emt
00:03:07]} Nba4 {[%clk 00:52:38]} {[%emt 00:01:01]} 18. Bd2 {[%emt 00:01:33]}
Bc6 {[%emt 00:00:35]} 19. Be3 {[%emt 00:04:34]} Qd3 {[%emt 00:01:35]} 20. Qxd3
{[%clk 00:29:29]} {[%emt 00:00:25]} Nxd3 {[%clk 00:48:45]} {[%emt 00:00:02]} 21.
Rfd1 {[%emt 00:10:17]} Rfd8 {[%emt 00:04:20]} 22. Bd4 {[%clk 00:23:57]} {[%emt
00:00:09]} Nb4 {[%emt 00:00:31]} 23. Rd2 {[%clk 00:23:17]} {[%emt 00:01:03]}
Nb6 {[%emt 00:07:18]} 24. Bxb6 {[%emt 00:02:41]} cxb6 {[%emt 00:04:26]} 25.
Rxd8+ {[%emt 00:00:32]} Rxd8 {[%emt 00:02:40]} 26. Nfd4 {[%clk 00:11:50]}
{[%emt 00:00:04]} Bxg2 {[%clk 00:38:18]} {[%emt 00:00:05]} 27. Kxg2 {[%emt
00:02:01]} Rc8 {[%emt 00:00:42]} 28. Nd2 {[%emt 00:00:31]} Ra8 {[%emt
00:02:19]} 29. a4 {[%emt 00:01:29]} Nd3 {[%emt 00:00:30]} 30. f4 {[%clk
00:09:04]} {[%emt 00:00:10]} Nc5 {[%emt 00:01:22]} 31. Kf3 {[%emt 00:03:17]}
Kf8 {[%emt 00:02:54]} 32. Ne4 {[%emt 00:00:13]} Rxa4 {[%emt 00:00:09]} 33. Rxa4
{[%clk 00:05:45]} {[%emt 00:00:03]} Nxa4 {[%emt 00:00:47]} 34. Nb5 {[%emt
00:02:01]} f6 {[%emt 00:01:59]} 35. h5 {[%emt 00:00:37]} fxe5 {[%clk 00:34:04]}
{[%emt 00:00:17]} 36. fxe5 {[%emt 00:06:28]} h6 {[%emt 00:00:42]} 37. Ned6
{[%emt 00:00:48]} Bxd6 {[%emt 00:00:47]} 38. Nxd6 {[%clk 00:03:48]} {[%emt
00:00:03]} Nc5 {[%emt 00:00:57]} 39. g4 {[%emt 00:00:39]} Ke7 {[%emt 00:00:54]}
40. Ke3 {[%emt 00:01:54]} 1/2-1/2

[Event "XXII Rochefort Chess Masters"]
[Site "ROCHEFORT, France"]
[Date "2024.02.20"]
[Round "6.5"]
[White "Colin, Vincent"]
[Black "Terrieux, Kevin"]
[Result "1/2-1/2"]
[TimeControl "1h30/40 - 30' + [30'']"]
[WhiteElo "2313"]
[BlackElo "2420"]

1. e4 {[%clk 01:30:52]} {[%emt 00:00:07]} c5 {[%clk 01:30:40]} {[%emt
00:00:20]} 2. Nf3 {[%clk 01:31:09]} {[%emt 00:00:13]} Nc6 {[%clk 01:30:27]}
{[%emt 00:00:44]} 3. d4 {[%clk 01:31:24]} {[%emt 00:00:15]} cxd4 {[%clk
01:30:21]} {[%emt 00:00:36]} 4. Nxd4 {[%emt 00:00:48]} Qb6 {[%emt 00:03:34]} 5.
Nb3 {[%clk 01:29:53]} {[%emt 00:00:39]} Nf6 {[%emt 00:01:29]} 6. Nc3 {[%clk
01:27:53]} {[%emt 00:01:40]} e6 {[%clk 01:28:25]} {[%emt 00:00:17]} 7. g4
{[%emt 00:13:53]} d5 {[%emt 00:15:02]} 8. Be3 {[%emt 00:29:04]} Qd8 {[%clk
00:48:40]} {[%emt 00:00:59]} 9. g5 {[%clk 01:07:02]} {[%emt 00:04:08]} Nxe4
{[%clk 00:48:24]} {[%emt 00:00:46]} 10. Nxe4 {[%clk 01:07:22]} {[%emt
00:00:10]} dxe4 {[%clk 00:48:49]} {[%emt 00:00:05]} 11. Qxd8+ {[%emt 00:04:42]}
Kxd8 {[%emt 00:06:18]} 12. O-O-O+ {[%clk 01:03:28]} {[%emt 00:01:23]} Kc7
{[%clk 00:41:49]} {[%emt 00:00:31]} 13. Bg2 {[%clk 01:03:22]} {[%emt 00:00:36]}
e5 {[%clk 00:37:01]} {[%emt 00:05:18]} 14. Bxe4 {[%emt 00:05:15]} f5 {[%clk
00:28:27]} {[%emt 00:04:19]} 15. gxf6 {[%clk 00:59:52]} {[%emt 00:04:00]} gxf6
{[%clk 00:28:49]} {[%emt 00:00:08]} 16. Rhg1 {[%emt 00:03:10]} Be6 {[%emt
00:05:25]} 17. Nc5 {[%clk 00:55:32]} {[%emt 00:00:05]} Bxc5 {[%emt 00:01:24]}
18. Bxc5 {[%clk 00:55:30]} {[%emt 00:00:13]} Rag8 {[%emt 00:02:39]} 19. Bxc6
{[%clk 00:54:39]} {[%emt 00:00:14]} Rxg1 {[%emt 00:06:46]} 20. Rxg1 {[%clk
00:49:56]} {[%emt 00:00:27]} Kxc6 {[%clk 00:23:14]} {[%emt 00:00:07]} 21. Be7
{[%emt 00:01:28]} f5 {[%emt 00:02:28]} 22. Bf6 {[%clk 00:47:05]} {[%emt
00:01:34]} Rg8 {[%clk 00:21:19]} {[%emt 00:01:16]} 23. Rxg8 {[%clk 00:47:00]}
{[%emt 00:00:34]} Bxg8 {[%emt 00:00:08]} 24. Bxe5 {[%clk 00:47:24]} {[%emt
00:00:04]} Kd5 {[%clk 00:21:34]} {[%emt 00:00:40]} 25. Bb8 {[%clk 00:47:42]}
{[%emt 00:00:12]} a6 {[%clk 00:21:58]} {[%emt 00:00:06]} 26. f3 {[%emt
00:06:44]} Kc5 {[%emt 00:05:43]} 27. Ba7+ {[%emt 00:00:59]} b6 {[%emt
00:00:37]} 28. Kd2 {[%emt 00:03:35]} Kc6 {[%emt 00:03:11]} 29. Bb8 {[%emt
00:04:07]} b5 {[%emt 00:01:03]} 30. a3 {[%clk 00:40:27]} {[%emt 00:00:02]} a5
{[%emt 00:05:47]} 31. Ke3 {[%emt 00:00:53]} Bd5 {[%emt 00:00:10]} 32. Kf4
{[%clk 00:36:15]} {[%emt 00:00:04]} h5 {[%emt 00:02:34]} 33. b3 {[%emt
00:02:15]} a4 {[%emt 00:05:03]} 34. bxa4 {[%clk 00:29:25]} {[%emt 00:00:31]}
bxa4 {[%clk 00:05:55]} {[%emt 00:00:03]} 35. c4 {[%clk 00:29:33]} {[%emt
00:00:22]} Bxc4 {[%emt 00:00:47]} 36. Kxf5 {[%emt 00:01:38]} Kd7 {[%emt
00:04:22]} 37. Bg3 {[%emt 00:00:47]} Ke8 {[%emt 00:00:25]} 38. Kg6 {[%emt
00:00:35]} Bf7+ {[%clk 00:03:52]} {[%emt 00:00:09]} 39. Kg7 {[%emt 00:00:52]}
Bd5 {[%clk 00:03:32]} {[%emt 00:00:09]} 40. f4 {[%clk 00:27:05]} {[%emt
00:00:08]} Be6 {[%emt 00:00:34]} 41. Bh4 {[%emt 00:01:53]} Bf7 {[%clk
00:03:26]} {[%emt 00:00:25]} 42. f5 {[%emt 00:02:19]} Bc4 {[%emt 00:05:05]} 43.
Be1 {[%clk 00:20:57]} {[%emt 00:00:08]} Bf7 {[%emt 00:00:57]} 44. Bb4 {[%clk
00:20:37]} {[%emt 00:00:30]} Bc4 {[%emt 00:04:26]} 45. Kg6 {[%clk 00:16:40]}
{[%emt 00:00:11]} Bf7+ {[%emt 00:00:08]} 46. Kg5 {[%clk 00:17:03]} {[%emt
00:00:06]} Kd7 {[%emt 00:01:25]} 1/2-1/2

[Event "XXII Rochefort Chess Masters"]
[Site "ROCHEFORT, France"]
[Date "2024.02.20"]
[Round "6.4"]
[White "Dalaud, Dorian"]
[Black "Roshka, Yevgeniy"]
[Result "1/2-1/2"]
[TimeControl "1h30/40 - 30' + [30'']"]
[WhiteElo "2332"]
[BlackElo "2474"]

1. e4 {[%clk 01:23:23]} {[%emt 00:00:10]} g6 {[%clk 01:30:52]} {[%emt
00:00:09]} 2. d4 {[%clk 01:23:37]} {[%emt 00:00:14]} Bg7 {[%emt 00:00:53]} 3.
Nc3 {[%clk 01:23:08]} {[%emt 00:00:13]} d6 {[%clk 01:31:39]} {[%emt 00:00:07]}
4. Be3 {[%clk 01:23:32]} {[%emt 00:00:06]} a6 {[%emt 00:01:09]} 5. h4 {[%clk
01:22:50]} {[%emt 00:00:06]} h6 {[%emt 00:05:23]} 6. h5 {[%clk 01:18:01]}
{[%emt 00:00:08]} g5 {[%clk 01:32:50]} {[%emt 00:00:05]} 7. f4 {[%clk
01:18:28]} {[%emt 00:00:03]} gxf4 {[%clk 01:33:16]} {[%emt 00:00:04]} 8. Bxf4
{[%clk 01:18:53]} {[%emt 00:00:05]} Nd7 {[%emt 00:12:03]} 9. Nf3 {[%clk
01:03:29]} {[%emt 00:04:03]} c5 {[%emt 00:05:07]} 10. d5 {[%clk 00:57:50]}
{[%emt 00:01:09]} b5 {[%emt 00:01:51]} 11. Qd2 {[%clk 00:57:10]} {[%emt
00:00:20]} Ngf6 {[%emt 00:10:07]} 12. Qe2 {[%emt 00:05:26]} Ng4 {[%clk
01:22:52]} {[%emt 00:00:28]} 13. Nd1 {[%emt 00:04:51]} Qa5+ {[%emt 00:03:18]}
14. Qd2 {[%emt 00:09:12]} Qa4 {[%emt 00:05:18]} 15. Qe2 {[%emt 00:01:39]} Nde5
{[%emt 00:07:10]} 16. c3 {[%clk 00:30:19]} {[%emt 00:03:13]} f5 {[%emt
00:04:02]} 17. Nxe5 {[%clk 00:27:18]} {[%emt 00:00:21]} Nxe5 {[%emt 00:00:41]}
18. Nf2 {[%emt 00:01:21]} Rf8 {[%emt 00:04:55]} 19. b3 {[%clk 00:22:13]} {[%emt
00:02:21]} Qa5 {[%clk 01:11:38]} {[%emt 00:00:51]} 20. Bd2 {[%emt 00:00:19]} c4
{[%clk 01:11:19]} {[%emt 00:00:43]} 21. b4 {[%clk 00:22:02]} {[%emt 00:00:58]}
Qa3 {[%emt 00:00:58]} 22. Qe3 {[%emt 00:10:48]} f4 {[%clk 00:59:58]} {[%emt
00:03:44]} 23. Qb6 {[%clk 00:17:14]} {[%emt 00:02:39]} Nd7 {[%clk 01:00:14]}
{[%emt 00:00:15]} 24. Qa5 {[%emt 00:00:12]} Qxa5 {[%clk 01:00:01]} {[%emt
00:00:38]} 25. bxa5 {[%clk 00:18:04]} {[%emt 00:00:02]} Nc5 {[%clk 00:59:28]}
{[%emt 00:01:03]} 26. Be2 {[%emt 00:02:43]} e6 {[%emt 00:06:53]} 27. O-O-O
{[%emt 00:03:11]} Na4 {[%clk 00:53:17]} {[%emt 00:00:06]} 28. dxe6 {[%emt
00:04:59]} Bxc3 {[%emt 00:01:47]} 29. Bg4 {[%emt 00:09:50]} Ke7 {[%emt
00:01:52]} 30. Nh3 {[%emt 00:06:36]} Bxd2+ {[%clk 00:34:26]} {[%emt 00:00:21]}
31. Rxd2 {[%emt 00:00:19]} Nc5 {[%emt 00:00:31]} 32. Rf1 {[%emt 00:07:09]} Bxe6
{[%emt 00:00:07]} 33. Nxf4 {[%clk 00:09:03]} {[%emt 00:00:18]} Kd7 {[%emt
00:01:35]} 34. Bxe6+ {[%clk 00:07:53]} {[%emt 00:00:31]} Nxe6 {[%clk 00:29:50]}
{[%emt 00:00:02]} 35. g3 {[%emt 00:00:32]} Nc5 {[%emt 00:01:55]} 36. Re1 {[%emt
00:01:30]} Kc6 {[%emt 00:01:14]} 37. e5 {[%clk 00:05:16]} {[%emt 00:00:07]}
dxe5 {[%clk 00:29:30]} {[%emt 00:00:40]} 38. Rxe5 {[%clk 00:05:27]} {[%emt
00:00:18]} Rae8 {[%emt 00:03:31]} 39. Rxe8 {[%clk 00:02:25]} {[%emt 00:00:02]}
Rxe8 {[%emt 00:01:32]} 40. Kc2 {[%emt 00:01:04]} Re3 {[%emt 00:09:34]} 41. Nd5
{[%emt 00:05:33]} Rxg3 {[%clk 00:53:23]} {[%emt 00:00:01]} 42. Nb4+ {[%emt
00:00:13]} Kb7 {[%clk 00:53:45]} {[%emt 00:00:01]} 43. Rd6 {[%clk 00:24:30]}
{[%emt 00:00:10]} Rg2+ {[%clk 00:53:31]} {[%emt 00:00:45]} 44. Kc1 {[%emt
00:05:22]} Nd3+ {[%clk 00:48:44]} {[%emt 00:00:16]} 45. Nxd3 {[%clk 00:24:55]}
{[%emt 00:00:14]} cxd3 {[%emt 00:12:00]} 46. a3 {[%emt 00:06:44]} Rc2+ {[%clk
00:42:55]} {[%emt 00:00:15]} 47. Kd1 {[%emt 00:02:05]} Rc6 {[%emt 00:03:40]} 48.
Rd7+ {[%emt 00:00:47]} Rc7 {[%clk 00:40:05]} {[%emt 00:00:16]} 49. Rd6 {[%emt
00:01:49]} Rc6 {[%clk 00:38:13]} {[%emt 00:00:40]} 50. Rd7+ {[%emt 00:07:17]}
Rc7 {[%clk 00:31:23]} {[%emt 00:00:17]} 51. Rd6 {[%emt 00:02:36]} Rc6 {[%emt
00:02:36]} 1/2-1/2